bitfinex/quotes_BTCUSD_20241009
["timestamp","ask_amount","ask_price","bid_price","bid_amount"]
[1728505928086,0.001636,61030.0,61029.0,0.671467]
[1728505928512,0.001636,61030.0,61029.0,0.68372154]
[1728505929184,1e-06,61030.0,61029.0,0.74778818]
[1728505929397,1e-06,61030.0,61029.0,0.88488818]
[1728505930067,1e-06,61031.0,61030.0,0.298853]
[1728505930274,0.24748726,61046.0,61045.0,0.11]
[1728505930494,0.24748726,61046.0,61045.0,0.72243395]
[1728505930706,0.24748726,61046.0,61045.0,0.67606035]
[1728505930915,0.001636,61046.0,61045.0,0.67606035]
[1728505931350,0.001636,61046.0,61045.0,0.96854735]
[1728505931785,0.001636,61046.0,61045.0,1.46854735]
[1728505933624,0.001636,61046.0,61045.0,1.48254735]
[1728505933844,0.001636,61046.0,61045.0,1.49654735]
[1728505934049,0.001636,61046.0,61045.0,1.50489494]
[1728505934486,0.001636,61046.0,61045.0,1.49089494]
[1728505934712,0.001636,61046.0,61045.0,1.30434704]
[1728505934932,0.001636,61046.0,61045.0,1.18962804]
[1728505935343,0.001636,61046.0,61045.0,1.13644704]
[1728505935562,0.001636,61046.0,61045.0,1.15044704]
[1728505935801,0.001636,61046.0,61045.0,1.16444704]
[1728505936007,0.001636,61046.0,61045.0,1.1588252]
[1728505936503,0.001636,61046.0,61045.0,1.0202382]
[1728505936723,0.081836,61046.0,61045.0,0.88886004]
[1728505936945,0.081836,61046.0,61045.0,0.86925277]
[1728505937381,0.081836,61046.0,61045.0,0.88325277]
[1728505937825,0.081836,61046.0,61045.0,0.98325277]
[1728505938049,0.081836,61046.0,61045.0,1.00625277]
[1728505938261,0.081836,61046.0,61045.0,0.97999823]
[1728505938475,0.081836,61046.0,61045.0,0.99224592]
[1728505938689,0.081836,61046.0,61045.0,1.00124592]
[1728505938909,0.081836,61046.0,61045.0,0.99224592]
[1728505939133,0.081836,61046.0,61045.0,0.98424592]
[1728505939371,0.081836,61046.0,61045.0,0.99224592]
[1728505939804,0.081836,61046.0,61045.0,0.98424592]
[1728505940247,0.001636,61046.0,61045.0,1.09826592]
[1728505940481,0.001636,61046.0,61045.0,1.10026592]
[1728505940720,0.001636,61046.0,61045.0,1.11986223]
[1728505941563,0.001636,61053.0,61052.0,0.175794]
[1728505941785,0.001636,61053.0,61052.0,1.6004913]
[1728505941999,0.001636,61053.0,61052.0,1.59721623]
[1728505942220,0.001636,61053.0,61052.0,1.42065423]
[1728505942429,0.001636,61053.0,61052.0,1.23410633]
[1728505942660,0.001636,61053.0,61052.0,0.47187933]
[1728505942911,0.001636,61053.0,61052.0,0.65227133]
[1728505943154,0.001636,61053.0,61052.0,0.65027133]
[1728505943366,0.001636,61053.0,61052.0,0.68944933]
[1728505943571,0.001636,61053.0,61052.0,0.69144933]
[1728505943791,0.001636,61053.0,61052.0,0.69944933]
[1728505944216,0.001636,61053.0,61052.0,1.19944933]
[1728505945318,0.001636,61053.0,61052.0,1.18720164]
[1728505945531,0.001636,61053.0,61052.0,1.19943993]
[1728505946174,0.001636,61053.0,61052.0,1.17285593]
[1728505947059,0.001636,61053.0,61052.0,1.17485593]
[1728505947276,0.001636,61053.0,61052.0,1.28444693]
[1728505947906,0.001636,61053.0,61052.0,1.27444693]
[1728505948362,0.001636,61053.0,61052.0,1.28844693]
[1728505948580,0.001636,61053.0,61052.0,1.28044693]
[1728505948986,0.001636,61053.0,61052.0,1.28044672]
[1728505949206,0.001636,61053.0,61052.0,1.20627172]
[1728505949678,0.001636,61053.0,61052.0,1.22027172]
[1728505950090,0.001636,61053.0,61052.0,1.20627172]
[1728505950304,0.001636,61053.0,61052.0,1.41531898]
[1728505950962,0.001636,61053.0,61052.0,1.43489991]
[1728505951181,0.001636,61053.0,61052.0,1.41531898]
[1728505951404,0.001636,61053.0,61052.0,1.43489991]
[1728505951622,0.001636,61053.0,61052.0,1.24635201]
[1728505951837,0.001636,61053.0,61052.0,1.24835201]
[1728505952266,0.001636,61053.0,61052.0,1.22877108]
[1728505952507,0.001636,61053.0,61052.0,1.24835201]
[1728505952919,0.001636,61053.0,61052.0,1.24635201]
[1728505953135,0.001636,61053.0,61052.0,1.02595001]
[1728505953349,0.001636,61053.0,61052.0,1.24459001]
[1728505954218,0.001636,61053.0,61052.0,1.02595001]
[1728505954434,0.12608064,61055.0,61054.0,0.173789]
[1728505954640,0.12608064,61055.0,61054.0,0.49144565]
[1728505954865,0.12608064,61055.0,61054.0,0.47186472]
[1728505955291,0.12608064,61055.0,61054.0,0.49144565]
[1728505955496,0.12608064,61055.0,61054.0,0.48944565]
[1728505955704,0.12608064,61055.0,61054.0,0.50344565]
[1728505955911,0.12608064,61055.0,61054.0,0.48562664]
[1728505956166,0.12608064,61055.0,61054.0,0.51747813]
[1728505956167,0.20928064,61055.0,61054.0,0.51747813]
[1728505956406,0.21009864,61055.0,61054.0,0.51747813]
[1728505956820,0.21009864,61055.0,61054.0,0.49787721]
[1728505957019,0.21009864,61055.0,61054.0,0.51747813]
[1728505958239,0.21009864,61055.0,61054.0,0.49787721]
[1728505958465,0.21009864,61055.0,61054.0,0.51747813]
[1728505959922,0.21009864,61055.0,61054.0,0.53712935]
[1728505960330,0.21009864,61055.0,61054.0,0.51752843]
[1728505964718,0.21009864,61055.0,61054.0,0.41252843]
[1728505964946,0.21009864,61055.0,61054.0,0.39289656]
[1728505965854,0.11009864,61055.0,61054.0,0.36489656]
[1728505966099,0.11009864,61055.0,61054.0,0.46489656]
[1728505966537,0.11009864,61055.0,61054.0,0.45262664]
[1728505966758,0.11009864,61055.0,61054.0,0.46490119]
[1728505966970,0.11009864,61055.0,61054.0,0.47890119]
[1728505967181,0.11009864,61055.0,61054.0,0.48190119]
[1728505967621,0.11009864,61055.0,61054.0,0.46790119]
[1728505967848,0.11009864,61055.0,61054.0,0.47090119]
[1728505968297,0.11009864,61055.0,61054.0,0.46790119]
[1728505968516,0.11009864,61055.0,61054.0,0.47090119]
[1728505969024,0.11009864,61055.0,61054.0,0.46790119]
[1728505969903,0.11009864,61055.0,61054.0,0.45562664]
[1728505970119,0.11009864,61055.0,61054.0,0.4649034]
[1728505970329,0.11009864,61055.0,61054.0,0.4679034]
[1728505970959,0.11009864,61055.0,61054.0,0.4709034]
[1728505973350,0.11009864,61055.0,61054.0,0.45862664]
[1728505973569,0.11009864,61055.0,61054.0,0.47090123]
[1728505975387,0.11009864,61055.0,61054.0,0.46790123]
[1728505976777,0.11009864,61055.0,61054.0,0.4678981]
[1728505976960,0.11009864,61055.0,61054.0,0.4708981]
[1728505980174,0.084018,61055.0,61054.0,0.4708981]
[1728505980429,0.084018,61055.0,61054.0,0.47089167]
[1728505980656,0.084018,61055.0,61054.0,0.47289167]
[1728505980870,0.084018,61055.0,61054.0,0.47452767]
[1728505981085,0.084018,61055.0,61054.0,0.49215173]
[1728505982910,0.084018,61055.0,61054.0,0.46026264]
[1728505983133,0.084018,61055.0,61054.0,0.49213261]
[1728505987279,0.084018,61055.0,61054.0,0.49215708]
[1728505987500,0.221218,61055.0,61054.0,0.46915708]
[1728505987721,0.22295247,61055.0,61054.0,0.44952973]
[1728505989340,0.22295247,61055.0,61054.0,0.44352973]
[1728505989543,0.22274353,61055.0,61054.0,0.44652973]
[1728505989978,0.22374353,61055.0,61054.0,0.44352973]
[1728505990188,0.22274353,61055.0,61054.0,0.44352973]
[1728505990400,0.22274353,61055.0,61054.0,0.34352973]
[1728505990638,0.41564334,61055.0,61054.0,0.34352973]
[1728505990851,0.41390887,61055.0,61054.0,0.33126264]
[1728505991068,0.22200906,61055.0,61054.0,0.33126264]
[1728505991288,0.22200906,61055.0,61054.0,0.3435392]
[1728505992392,0.22200906,61055.0,61054.0,0.34353896]
[1728505993023,0.41390887,61055.0,61054.0,0.33126264]
[1728505994253,0.41390887,61055.0,61054.0,0.001636]
[1728505994496,0.57769487,61055.0,61054.0,0.001636]
[1728505999085,0.41390887,61055.0,61054.0,0.001636]
[1728505999293,0.57769487,61055.0,61054.0,0.001636]
[1728506009683,0.58517134,61055.0,61054.0,0.001636]
[1728506012578,0.51924102,61055.0,61054.0,0.001636]
[1728506026614,0.39327153,61055.0,61054.0,0.001636]
[1728506026832,0.51924102,61055.0,61054.0,0.001636]
[1728506029908,0.22948553,61055.0,61054.0,0.001636]
[1728506030164,0.21998949,61055.0,61054.0,0.165425]
[1728506030611,0.09228553,61055.0,61054.0,0.165425]
[1728506030835,0.00929447,61055.0,61054.0,0.44355258]
[1728506031092,0.00929447,61055.0,61054.0,0.01392594]
[1728506031315,0.39307967,61055.0,61054.0,0.01392594]
[1728506031556,0.3913452,61055.0,61054.0,0.001636]
[1728506032252,0.3903452,61055.0,61054.0,0.001636]
[1728506032485,0.3903452,61055.0,61054.0,0.003636]
[1728506032959,0.3903452,61055.0,61054.0,0.001636]
[1728506033183,0.3913452,61055.0,61054.0,0.003636]
[1728506033439,0.44031507,61055.0,61054.0,0.003636]
[1728506033663,0.44031507,61055.0,61054.0,0.001636]
[1728506034151,0.44331507,61055.0,61054.0,0.001636]
[1728506034393,0.27952907,61055.0,61054.0,0.001636]
[1728506034642,0.28126354,61055.0,61054.0,0.001636]
[1728506034900,0.44504954,61055.0,61054.0,0.001636]
[1728506035146,0.44331507,61055.0,61054.0,0.001636]
[1728506035648,0.26289856,61055.0,61054.0,0.165425]
[1728506035890,0.21392869,61055.0,61054.0,0.165425]
[1728506039378,0.26297394,61055.0,61054.0,0.001636]
[1728506039630,0.26470841,61055.0,61054.0,0.001636]
[1728506043239,0.26470841,61055.0,61054.0,0.165425]
[1728506043460,0.26297394,61055.0,61054.0,0.165425]
[1728506044329,0.26297394,61055.0,61054.0,0.001636]
[1728506044542,0.26470841,61055.0,61054.0,0.001636]
[1728506046358,0.26470841,61055.0,61054.0,0.165425]
[1728506046580,0.26297394,61055.0,61054.0,0.165425]
[1728506047270,0.13700445,61055.0,61054.0,0.32626264]
[1728506047493,0.13700445,61055.0,61054.0,0.33126264]
[1728506047494,0.0122592,61055.0,61054.0,0.33126264]
[1728506047727,0.0122592,61055.0,61054.0,0.3435487]
[1728506047952,0.004818,61055.0,61054.0,0.3435487]
[1728506048661,0.001818,61055.0,61054.0,0.3435487]
[1728506049144,0.000818,61055.0,61054.0,0.3435487]
[1728506049377,0.000818,61055.0,61054.0,0.5435487]
[1728506050614,0.000818,61055.0,61054.0,0.5685487]
[1728506050835,0.000818,61055.0,61054.0,0.57709519]
[1728506051080,0.000818,61055.0,61054.0,0.57909519]
[1728506051861,0.000818,61055.0,61054.0,0.74659519]
[1728506052599,0.000818,61055.0,61054.0,0.79372877]
[1728506053113,0.000818,61055.0,61054.0,0.78944271]
[1728506053587,0.000818,61055.0,61054.0,0.75358596]
[1728506053831,0.000818,61055.0,61054.0,0.74258596]
[1728506054064,0.000818,61055.0,61054.0,0.75358596]
[1728506054323,0.000818,61055.0,61054.0,0.74258596]
[1728506054581,0.000818,61055.0,61054.0,0.73864365]
[1728506054832,0.000818,61055.0,61054.0,0.74964365]
[1728506055099,0.000818,61055.0,61054.0,0.7719209]
[1728506055372,0.000818,61055.0,61054.0,0.56308638]
[1728506055811,0.00255247,61055.0,61054.0,0.12491325]
[1728506055813,0.00255247,61055.0,61054.0,0.13391325]
[1728506056045,0.16633847,61055.0,61054.0,0.12291325]
[1728506056496,0.1729895,61055.0,61054.0,0.12391325]
[1728506056748,0.1729895,61055.0,61054.0,0.11391325]
[1728506056962,0.1729895,61055.0,61054.0,0.12619043]
[1728506057192,0.1729895,61055.0,61054.0,0.13846766]
[1728506057410,0.1729895,61055.0,61054.0,0.12619043]
[1728506058542,0.36492233,61055.0,61054.0,0.12619043]
[1728506058756,0.36318786,61055.0,61054.0,0.12619043]
[1728506061562,0.57798786,61055.0,61054.0,0.12619043]
[1728506062274,0.64230809,61055.0,61054.0,0.12619043]
[1728506062724,0.59431165,61055.0,61054.0,0.12719043]
[1728506062965,0.59431165,61055.0,61054.0,0.12819043]
[1728506063206,0.59531165,61055.0,61054.0,0.12819043]
[1728506063948,0.59431165,61055.0,61054.0,0.12719043]
[1728506064206,0.59531165,61055.0,61054.0,0.12819043]
[1728506064676,0.59431165,61055.0,61054.0,0.12719043]
[1728506065173,0.59831165,61055.0,61054.0,0.12819043]
[1728506066619,0.59831165,61055.0,61054.0,0.103636]
[1728506067436,0.6472968,61055.0,61054.0,0.103636]
[1728506071078,0.327594,61052.0,61046.0,0.001636]
[1728506071305,0.43624083,61047.0,61046.0,0.001636]
[1728506071972,0.4436697,61047.0,61046.0,0.001636]
[1728506072198,0.4436697,61047.0,61046.0,0.002636]
[1728506073069,0.4436697,61047.0,61046.0,0.001636]
[1728506073288,0.4466697,61047.0,61046.0,0.001636]
[1728506074891,0.4506697,61047.0,61046.0,0.001636]
[1728506075566,0.2868617,61047.0,61046.0,0.001636]
[1728506075788,0.2868617,61047.0,61046.0,0.165446]
[1728506076009,0.007,61047.0,61046.0,0.165446]
[1728506076469,0.003,61047.0,61046.0,0.165446]
[1728506076711,0.19932758,61047.0,61046.0,0.165446]
[1728506076932,0.58774083,61047.0,61046.0,0.001636]
[1728506077159,0.59513764,61047.0,61046.0,0.001636]
[1728506078081,0.59813764,61047.0,61046.0,0.001636]
[1728506078292,0.59513764,61047.0,61046.0,0.001636]
[1728506078505,0.53020944,61047.0,61046.0,0.001636]
[1728506079497,0.53920944,61047.0,61046.0,0.003636]
[1728506080185,0.55450865,61047.0,61046.0,0.003636]
[1728506080391,0.53920944,61047.0,61046.0,0.003636]
[1728506080591,0.55450866,61047.0,61046.0,0.003636]
[1728506083786,0.39070066,61047.0,61046.0,0.003636]
[1728506084000,0.40820725,61047.0,61046.0,0.003636]
[1728506084214,0.39290944,61047.0,61046.0,0.003636]
[1728506085343,0.22910144,61047.0,61046.0,0.003636]
[1728506085528,0.39464391,61047.0,61046.0,0.003636]
[1728506085774,0.39290944,61047.0,61046.0,0.003636]
[1728506086471,0.23639986,61047.0,61046.0,0.002636]
[1728506086675,0.23813418,61047.0,61046.0,0.002636]
[1728506087142,0.23313418,61047.0,61046.0,0.001636]
[1728506087367,0.39694218,61047.0,61046.0,0.001636]
[1728506087583,0.40020771,61047.0,61046.0,0.002636]
[1728506087800,0.40420771,61047.0,61046.0,0.003636]
[1728506088016,0.39920771,61047.0,61046.0,0.002636]
[1728506088206,0.39920771,61047.0,61046.0,0.003636]
[1728506088465,0.40420771,61047.0,61046.0,0.003636]
[1728506089565,0.54940771,61047.0,61046.0,0.003636]
[1728506090470,0.54942244,61047.0,61046.0,0.003636]
[1728506090961,0.42341781,61047.0,61046.0,0.003636]
[1728506091199,0.54942244,61047.0,61046.0,0.003636]
[1728506093628,0.54942617,61047.0,61046.0,0.003636]
[1728506094347,0.42342154,61047.0,61046.0,0.003636]
[1728506094596,0.61540616,61047.0,61046.0,0.003636]
[1728506094828,0.45159816,61047.0,61046.0,0.003636]
[1728506096275,0.45159816,61047.0,61046.0,0.167446]
[1728506096276,0.30639816,61047.0,61046.0,0.167446]
[1728506097114,0.21869816,61047.0,61046.0,0.166446]
[1728506097364,0.20338143,61047.0,61046.0,0.165446]
[1728506097588,0.20638143,61047.0,61046.0,0.165446]
[1728506097821,0.20238143,61047.0,61046.0,0.165446]
[1728506098053,0.20538143,61047.0,61046.0,0.165446]
[1728506099042,0.20238143,61047.0,61046.0,0.165446]
[1728506100028,0.19938143,61047.0,61046.0,0.165446]
[1728506100749,0.2011159,61047.0,61046.0,0.165446]
[1728506101736,0.19938143,61047.0,61046.0,0.165446]
[1728506102994,0.20038143,61047.0,61046.0,0.165446]
[1728506103270,0.20038143,61047.0,61046.0,0.001636]
[1728506103512,0.4497239,61047.0,61046.0,0.001636]
[1728506103739,0.44798943,61047.0,61046.0,0.001636]
[1728506103968,0.44698943,61047.0,61046.0,0.001636]
[1728506104218,0.44798943,61047.0,61046.0,0.001636]
[1728506104477,0.44998943,61047.0,61046.0,0.001636]
[1728506106488,0.49887372,61047.0,61046.0,0.001636]
[1728506108357,0.58668943,61047.0,61046.0,0.001636]
[1728506108581,0.6602555,61047.0,61046.0,0.001636]
[1728506108796,0.66025861,61047.0,61046.0,0.001636]
[1728506109010,0.58668943,61047.0,61046.0,0.001636]
[1728506109231,0.66025746,61047.0,61046.0,0.001636]
[1728506109478,0.88081269,61047.0,61046.0,0.001636]
[1728506109702,0.67557672,61047.0,61046.0,0.001636]
[1728506109941,0.88080337,61047.0,61046.0,0.001636]
[1728506110175,0.67557371,61047.0,61046.0,0.001636]
[1728506110427,0.42288143,61047.0,61046.0,0.001636]
[1728506110690,0.44998943,61047.0,61046.0,0.001636]
[1728506110911,0.14324537,61047.0,61046.0,0.165446]
[1728506111135,0.01139681,61047.0,61046.0,0.165446]
[1728506111841,0.00939681,61047.0,61046.0,0.165446]
[1728506112166,0.00739681,61047.0,61046.0,0.165446]
[1728506112618,0.19198462,61049.0,61048.0,0.163805]
[1728506114277,0.19198462,61049.0,61048.0,0.164805]
[1728506115541,0.19198462,61049.0,61048.0,0.32664264]
[1728506116023,0.19938568,61049.0,61048.0,0.32664264]
[1728506117238,0.00740106,61049.0,61048.0,0.32664264]
[1728506117736,0.19280262,61053.0,61052.0,0.163794]
[1728506117968,0.24186712,61053.0,61052.0,0.163794]
[1728506118441,0.24186712,61053.0,61051.0,0.163795]
[1728506119079,0.24486712,61053.0,61052.0,0.163794]
[1728506119302,0.003,61053.0,61052.0,0.163794]
[1728506119529,0.19498462,61053.0,61052.0,0.163794]
[1728506119750,0.19198462,61053.0,61052.0,0.163794]
[1728506119981,0.19398462,61053.0,61052.0,0.163794]
[1728506120214,0.35777762,61053.0,61050.0,0.163799]
[1728506120435,0.35777762,61053.0,61046.0,0.165445]
[1728506120436,0.1638,61050.0,61046.0,0.165445]
[1728506120654,0.19371909,61049.0,61046.0,0.165445]
[1728506120880,0.19371909,61049.0,61047.0,0.163808]
[1728506121599,0.0758,61048.0,61046.0,0.001636]
[1728506121856,0.24654247,61047.0,61046.0,0.005636]
[1728506122097,0.24654247,61047.0,61046.0,0.001636]
[1728506123062,0.24654247,61047.0,61046.0,0.005636]
[1728506123560,0.24654247,61047.0,61046.0,0.008636]
[1728506124909,0.24654247,61047.0,61046.0,0.001636]
[1728506125117,0.25054247,61047.0,61046.0,0.001636]
[1728506125369,0.08673447,61047.0,61046.0,0.001636]
[1728506125627,0.25054247,61047.0,61046.0,0.001636]
[1728506129451,0.13574542,61047.0,61046.0,0.165446]
[1728506129672,0.085,61047.0,61046.0,0.165446]
[1728506130128,0.085,61047.0,61046.0,0.001636]
[1728506130353,0.248808,61047.0,61046.0,0.001636]
[1728506130552,0.29781895,61047.0,61046.0,0.001636]
[1728506130829,0.29955342,61047.0,61046.0,0.001636]
[1728506131502,0.25054247,61047.0,61046.0,0.001636]
[1728506131936,0.3240589,61047.0,61046.0,0.001636]
[1728506132177,0.46662443,61047.0,61046.0,0.001636]
[1728506132659,0.46660962,61047.0,61046.0,0.001636]
[1728506133102,0.393108,61047.0,61046.0,0.001636]
[1728506133541,0.46660962,61047.0,61046.0,0.001636]
[1728506134421,0.20750155,61047.0,61046.0,0.001636]
[1728506134649,0.29954429,61047.0,61046.0,0.001636]
[1728506135088,0.13573629,61047.0,61046.0,0.001636]
[1728506135332,0.08673447,61047.0,61046.0,0.001636]
[1728506135584,0.13573629,61047.0,61046.0,0.001636]
[1728506136040,0.08673447,61047.0,61046.0,0.001636]
[1728506136272,0.085,61047.0,61046.0,0.165446]
[1728506136493,0.004,61047.0,61046.0,0.165446]
[1728506138274,0.002,61047.0,61046.0,0.165446]
[1728506138505,0.08103447,61051.0,61047.0,0.327613]
[1728506138785,0.0793,61051.0,61047.0,0.327613]
[1728506139445,0.0793,61051.0,61050.0,0.1638]
[1728506140793,0.0803,61051.0,61050.0,0.1638]
[1728506141040,0.0793,61051.0,61050.0,0.1638]
[1728506141288,0.0833,61051.0,61050.0,0.1638]
[1728506141530,0.08803447,61051.0,61050.0,0.1638]
[1728506142429,0.0863,61051.0,61050.0,0.1638]
[1728506142924,0.0863,61051.0,61049.0,0.163802]
[1728506143154,0.19371909,61050.0,61049.0,0.163802]
[1728506143869,0.19371909,61050.0,61046.0,0.329256]
[1728506144090,0.19371909,61050.0,61047.0,0.163807]
[1728506144311,0.19671909,61050.0,61047.0,0.163807]
[1728506144534,0.19671909,61050.0,61046.0,0.49009364]
[1728506144776,0.19671909,61050.0,61048.0,0.163804]
[1728506145003,0.19671909,61050.0,61049.0,0.163802]
[1728506145220,0.19871909,61050.0,61047.0,0.163806]
[1728506145451,0.19871909,61050.0,61048.0,0.163804]
[1728506146127,0.19571909,61050.0,61048.0,0.163804]
[1728506146575,0.19471909,61050.0,61048.0,0.163804]
[1728506146763,0.19371909,61050.0,61048.0,0.163804]
[1728506147227,0.19371909,61050.0,61047.0,0.327615]
[1728506147453,0.19371909,61050.0,61046.0,0.165444]
[1728506147674,0.36152109,61050.0,61046.0,0.001636]
[1728506147907,0.00173447,61049.0,61046.0,0.001636]
[1728506148132,0.16553747,61049.0,61046.0,0.001636]
[1728506148770,0.00173447,61049.0,61046.0,0.001636]
[1728506148993,0.00173447,61049.0,61048.0,0.163805]
[1728506149206,0.00173447,61049.0,61046.0,0.165445]
[1728506149654,0.00173447,61049.0,61046.0,0.166445]
[1728506149840,0.00173447,61049.0,61046.0,0.165445]
[1728506150080,0.00373447,61049.0,61046.0,0.165445]
[1728506150577,0.00173447,61049.0,61046.0,0.165445]
[1728506151276,0.00373447,61049.0,61046.0,0.165445]
[1728506151761,0.243908,61047.0,61046.0,0.001636]
[1728506152007,0.29468335,61047.0,61046.0,0.001636]
[1728506152232,0.45680379,61047.0,61046.0,0.001636]
[1728506152466,0.381508,61047.0,61046.0,0.001636]
[1728506152695,0.66063756,61047.0,61046.0,0.001636]
[1728506152924,0.5625558,61047.0,61046.0,0.001636]
[1728506153143,0.61564625,61047.0,61046.0,0.001636]
[1728506153822,0.61764625,61047.0,61046.0,0.001636]
[1728506154045,0.61764625,61047.0,61032.0,0.24585126]
[1728506154046,0.386145,61033.0,61032.0,0.24585126]
[1728506154498,0.386145,61033.0,61031.0,0.001636]
[1728506154499,0.163848,61032.0,61031.0,0.001636]
[1728506154749,0.5213106,61032.0,61031.0,0.001636]
[1728506155001,0.54415428,61032.0,61031.0,0.001636]
[1728506155445,0.51951002,61032.0,61031.0,0.001636]
[1728506156331,0.31416997,61032.0,61031.0,0.001636]
[1728506156550,0.31590444,61032.0,61031.0,0.001636]
[1728506156981,0.31990444,61032.0,61031.0,0.002636]
[1728506157220,0.31816997,61032.0,61031.0,0.002636]
[1728506157475,0.30467631,61032.0,61031.0,0.003636]
[1728506157704,0.30641078,61032.0,61031.0,0.003636]
[1728506158467,0.25748247,61032.0,61031.0,0.003636]
[1728506161517,0.39988247,61032.0,61031.0,0.003636]
[1728506161763,0.398148,61032.0,61031.0,0.003636]
[1728506164695,0.255748,61032.0,61031.0,0.003636]
[1728506164911,0.25748247,61032.0,61031.0,0.003636]
[1728506165555,0.39778247,61032.0,61031.0,0.003636]
[1728506165813,0.396048,61032.0,61031.0,0.003636]
[1728506168398,0.255748,61032.0,61031.0,0.003636]
[1728506168629,0.09363447,61032.0,61031.0,0.167487]
[1728506168847,0.09363447,61032.0,61031.0,0.003636]
[1728506168848,0.0919,61032.0,61031.0,0.003636]
[1728506169300,0.015,61032.0,61031.0,0.167487]
[1728506169518,0.178848,61032.0,61031.0,0.003636]
[1728506170860,0.015,61032.0,61031.0,0.003636]
[1728506175504,0.178848,61032.0,61031.0,0.003636]
[1728506175724,0.18058247,61032.0,61031.0,0.003636]
[1728506177528,0.25788247,61032.0,61031.0,0.003636]
[1728506177748,0.39000867,61032.0,61031.0,0.003636]
[1728506177967,0.3882742,61032.0,61031.0,0.003636]
[1728506178205,0.26344059,61032.0,61031.0,0.003636]
[1728506178443,0.26117506,61032.0,61031.0,0.002636]
[1728506179523,0.25017506,61032.0,61031.0,0.001636]
[1728506179711,0.25917506,61032.0,61031.0,0.002636]
[1728506180178,0.25017506,61032.0,61031.0,0.001636]
[1728506180390,0.25417506,61032.0,61031.0,0.002636]
[1728506180606,0.26317506,61032.0,61031.0,0.003636]
[1728506180826,0.25917506,61032.0,61031.0,0.002636]
[1728506181079,0.26317506,61032.0,61031.0,0.003636]
[1728506190056,0.09932706,61032.0,61031.0,0.003636]
[1728506190270,0.02202706,61032.0,61031.0,0.003636]
[1728506190697,0.02202706,61032.0,61031.0,0.167487]
[1728506190909,0.02202706,61032.0,61031.0,0.003636]
[1728506191134,0.26897506,61032.0,61031.0,0.003636]
[1728506194972,0.31786517,61032.0,61031.0,0.003636]
[1728506195217,0.3161307,61032.0,61031.0,0.003636]
[1728506195501,0.26724059,61032.0,61031.0,0.003636]
[1728506195749,0.26897506,61032.0,61031.0,0.003636]
[1728506196303,0.31797116,61032.0,61031.0,0.003636]
[1728506196499,0.80130019,61032.0,61031.0,0.003636]
[1728506196748,1.08663513,61032.0,61031.0,0.003636]
[1728506196969,1.08663513,61032.0,61020.0,0.001634]
[1728506196970,0.43606262,61021.0,61020.0,0.001634]
[1728506197471,0.49234471,61021.0,61020.0,0.001634]
[1728506197712,0.4433305,61021.0,61020.0,0.001634]
[1728506198205,0.48736092,61021.0,61020.0,0.001634]
[1728506198437,0.4383305,61021.0,61020.0,0.001634]
[1728506198687,0.4413305,61021.0,61020.0,0.001634]
[1728506198947,0.4383305,61021.0,61020.0,0.001634]
[1728506199175,0.48837234,61021.0,61020.0,0.001634]
[1728506199420,0.4393305,61021.0,61020.0,0.001634]
[1728506199884,0.4383305,61021.0,61020.0,0.001634]
[1728506200385,0.49637315,61021.0,61020.0,0.002634]
[1728506200877,0.49636406,61021.0,61020.0,0.002634]
[1728506201113,0.50436406,61021.0,61020.0,0.002634]
[1728506202804,0.4553305,61021.0,61020.0,0.002634]
[1728506203042,0.50436406,61021.0,61020.0,0.002634]
[1728506203278,0.4553305,61021.0,61020.0,0.002634]
[1728506212490,0.38945223,61021.0,61020.0,0.002634]
[1728506222270,0.10446788,61021.0,61020.0,0.002634]
[1728506222500,0.02682035,61021.0,61020.0,0.002634]
[1728506223450,0.02682035,61021.0,61020.0,0.166514]
[1728506223636,0.02508588,61021.0,61020.0,0.002634]
[1728506224370,0.02508588,61021.0,61020.0,0.305014]
[1728506224595,0.02508588,61021.0,61020.0,0.60794348]
[1728506224820,0.017818,61021.0,61020.0,0.60794348]
[1728506225042,0.017818,61021.0,61020.0,0.73404983]
[1728506225264,0.017818,61021.0,61020.0,0.75704983]
[1728506225957,0.017818,61021.0,61020.0,0.75904983]
[1728506226180,0.009818,61021.0,61020.0,0.75904983]
[1728506226402,0.010818,61021.0,61020.0,0.75704003]
[1728506226625,0.001818,61021.0,61020.0,0.62993368]
[1728506226873,0.000818,61021.0,61020.0,0.62993368]
[1728506227093,0.001818,61021.0,61020.0,0.63693368]
[1728506227283,0.001768,61021.0,61020.0,0.63593368]
[1728506227534,0.002768,61021.0,61020.0,0.64593368]
[1728506227754,0.001768,61021.0,61020.0,0.63993368]
[1728506227978,0.000768,61021.0,61020.0,0.62993368]
[1728506228192,0.002768,61021.0,61020.0,0.64793368]
[1728506228438,0.002768,61021.0,61020.0,0.65636631]
[1728506228649,0.002768,61021.0,61020.0,0.68965431]
[1728506229321,0.002768,61021.0,61020.0,0.64185431]
[1728506229991,0.002768,61021.0,61020.0,0.62957227]
[1728506231545,0.002768,61021.0,61020.0,0.49107227]
[1728506234669,0.002768,61021.0,61020.0,0.49107227]
[1728506243967,0.002768,61021.0,61020.0,0.51407227]
[1728506244413,0.002768,61021.0,61020.0,0.66497227]
[1728506245498,0.002768,61021.0,61020.0,0.67722545]
[1728506247909,0.002768,61021.0,61020.0,0.66497227]
[1728506248126,0.002768,61021.0,61020.0,0.67723282]
[1728506248781,0.002768,61021.0,61020.0,0.52633282]
[1728506249836,0.002768,61021.0,61020.0,0.51407227]
[1728506250920,0.002768,61021.0,61020.0,0.52634061]
[1728506251585,0.002768,61021.0,61020.0,0.52634632]
[1728506252257,0.002768,61021.0,61020.0,0.52834632]
[1728506252691,0.002768,61021.0,61020.0,0.52634632]
[1728506254962,0.002768,61021.0,61020.0,0.70294632]
[1728506255895,0.002768,61021.0,61020.0,0.70296558]
[1728506256581,0.002768,61021.0,61020.0,0.70496558]
[1728506257022,0.002768,61021.0,61020.0,0.70296558]
[1728506257244,0.002768,61021.0,61020.0,0.52636558]
[1728506266338,0.002768,61021.0,61020.0,0.51407227]
[1728506266558,0.002768,61021.0,61020.0,0.52636372]
[1728506268583,0.002768,61021.0,61020.0,0.52836372]
[1728506269166,0.002768,61021.0,61020.0,0.60621541]
[1728506269376,0.002768,61021.0,61020.0,0.84918372]
[1728506269983,0.002768,61021.0,61020.0,0.84918356]
[1728506270216,0.002768,61021.0,61020.0,0.84918273]
[1728506274233,0.002768,61021.0,61020.0,0.84917333]